bitfinex-derivatives/quotes_BNBF0:USTF0_20250115
["timestamp","ask_amount","ask_price","bid_price","bid_amount"]
[1736983585693,1.89943461,712.41,711.23,1.49820298]
[1736983585891,1.89943461,712.4,711.23,1.49820298]
[1736983586092,1.89943461,712.39,711.23,1.49820298]
[1736983586291,1.13833661,712.38,711.23,1.49820298]
[1736983586490,1.05286974,712.7,711.23,1.49820298]
[1736983586689,3.11728302,712.69,711.23,1.49820298]
[1736983586888,3.11728302,712.68,711.23,1.49820298]
[1736983587092,1.05286974,712.65,711.23,1.49820298]
[1736983587393,3.11728302,712.64,711.23,1.49820298]
[1736983587687,3.11728302,712.63,711.24,2.77976029]
[1736983587892,3.11728302,712.62,711.24,2.77976029]
[1736983588091,3.11728302,712.61,711.24,2.77976029]
[1736983588393,4.17015276,712.6,711.26,0.28119112]
[1736983588593,3.11728302,712.59,711.26,0.28119112]
[1736983588792,3.11728302,712.58,711.26,0.28119112]
[1736983589087,3.11728302,712.57,711.26,0.28119112]
[1736983589291,1.89949054,712.56,711.26,0.28119112]
[1736983589592,1.89949054,712.55,711.26,0.28119112]
[1736983589791,1.89949054,712.54,711.26,0.28119112]
[1736983589989,1.89949054,712.53,711.26,0.28119112]
[1736983590193,1.89949054,712.52,711.26,0.28119112]
[1736983590391,1.89949054,712.51,711.26,0.28119112]
[1736983590590,1.89949054,712.5,711.26,0.28119112]
[1736983590789,1.89949054,712.49,711.26,0.28119112]
[1736983590988,1.89949054,712.48,711.26,0.28119112]
[1736983591193,1.89949054,712.47,711.26,0.28119112]
[1736983591388,1.89949054,712.46,711.26,0.28119112]
[1736983591589,1.89949054,712.45,711.26,0.28119112]
[1736983591786,1.89949054,712.44,711.26,0.28119112]
[1736983591990,1.89930809,712.43,711.26,0.28119112]
[1736983592190,1.13818779,712.42,711.26,0.28119112]
[1736983592390,1.05286974,713.04,711.26,0.28119112]
[1736983592588,3.11664171,713.03,711.26,0.28119112]
[1736983592888,3.11664171,713.02,711.26,0.28119112]
[1736983593093,3.11664171,713.01,711.26,0.28119112]
[1736983593294,3.11664171,713.0,711.26,0.28119112]
[1736983593494,3.11664171,712.99,711.26,0.28119112]
[1736983593696,3.11664171,712.98,711.26,0.28119112]
[1736983593886,3.11664171,712.97,711.26,0.28119112]
[1736983594092,3.11664171,712.96,711.26,0.28119112]
[1736983594288,3.11664171,712.95,711.26,0.28119112]
[1736983594489,1.26033111,714.09,711.26,0.28119112]
[1736983594490,3.11664171,712.94,711.26,0.28119112]
[1736983594693,3.11664171,712.93,711.26,0.28119112]
[1736983594896,3.11664171,712.92,711.26,0.28119112]
[1736983595094,3.11664171,712.91,711.26,0.28119112]
[1736983595290,3.11664171,712.9,711.26,0.28119112]
[1736983595489,3.11664171,712.89,711.26,0.28119112]
[1736983595695,3.11664171,712.88,711.26,0.28119112]
[1736983595890,3.11664171,712.87,711.26,0.28119112]
[1736983596093,3.11664171,712.86,711.26,0.28119112]
[1736983596296,3.11664171,712.85,711.26,0.28119112]
[1736983596496,3.11664171,712.84,711.26,0.28119112]
[1736983596695,3.11664171,712.83,711.26,0.28119112]
[1736983596995,3.11664171,712.82,711.26,0.28119112]
[1736983597192,1.05286974,713.05,711.26,1.40519112]
[1736983597193,3.11664171,712.81,711.26,1.40519112]
[1736983597492,1.26033111,713.87,711.26,1.40519112]
[1736983597493,3.11664171,712.8,711.26,1.40519112]
[1736983597795,3.11664171,712.79,711.26,1.40519112]
[1736983597991,3.11664171,712.78,711.26,1.40519112]
[1736983598190,1.05286974,712.99,711.26,1.40519112]
[1736983598191,3.11664171,712.77,711.26,1.40519112]
[1736983598394,3.11664171,712.76,711.26,1.40519112]
[1736983598595,3.11664171,712.75,711.26,1.40519112]
[1736983598796,1.89910192,712.74,711.26,1.40519112]
[1736983598993,1.89910192,712.73,711.26,1.40519112]
[1736983599191,1.89910192,712.72,711.26,1.40519112]
[1736983599391,1.89910192,712.71,711.26,1.40519112]
[1736983599591,1.89910192,712.7,711.26,1.40519112]
[1736983599897,1.89801029,712.69,711.26,1.40519112]
[1736983600097,1.89801029,712.68,711.26,1.40519112]
[1736983600294,1.89801029,712.67,711.26,1.40519112]
[1736983600492,1.05286974,713.3,711.26,1.40519112]
[1736983600493,1.89801029,712.66,711.26,1.40519112]
[1736983600694,1.89801029,712.65,711.26,1.40519112]
[1736983600893,1.89801029,712.64,711.26,1.40519112]
[1736983601097,1.89801029,712.63,711.26,1.40519112]
[1736983601290,1.13813955,712.62,711.26,1.40519112]
[1736983601494,1.05286974,713.31,711.26,1.40519112]
[1736983601693,3.11103123,713.3,711.26,1.40519112]
[1736983601997,3.11103123,713.29,711.26,1.40519112]
[1736983602197,3.11103123,713.28,711.26,1.40519112]
[1736983602397,3.11103123,713.27,711.26,1.40519112]
[1736983602697,3.11103123,713.26,711.26,1.40519112]
[1736983602997,3.11103123,713.25,711.26,1.40519112]
[1736983603192,1.97492808,713.24,711.26,1.40519112]
[1736983603397,3.11068174,713.23,711.26,1.40519112]
[1736983603598,3.11068174,713.22,711.26,1.40519112]
[1736983603797,3.11068174,713.21,711.26,1.40519112]
[1736983603991,3.11068174,713.2,711.26,1.40519112]
[1736983604191,1.26033111,714.33,711.26,1.40519112]
[1736983604192,3.11068174,713.19,711.26,1.40519112]
[1736983604390,1.05286974,713.33,711.26,1.40519112]
[1736983604391,3.11068174,713.18,711.26,1.40519112]
[1736983604596,3.11068174,713.17,711.26,1.40519112]
[1736983604798,3.11068174,713.16,711.26,1.40519112]
[1736983605000,3.11068174,713.15,711.26,1.40519112]
[1736983605197,3.11068174,713.14,711.26,1.40519112]
[1736983605398,3.11068174,713.13,711.26,1.40519112]
[1736983605598,3.11068174,713.12,711.26,1.40519112]
[1736983605798,3.11068174,713.11,711.26,1.40519112]
[1736983605994,3.11068174,713.1,711.26,1.40519112]
[1736983606199,3.11068174,713.09,711.26,1.40519112]
[1736983606499,1.05286974,713.32,711.26,1.40519112]
[1736983606500,3.11068174,713.08,711.26,1.40519112]
[1736983606699,3.11068174,713.07,711.26,1.40519112]
[1736983606897,3.11068174,713.06,711.26,1.40519112]
[1736983607099,3.11068174,713.05,711.26,1.40519112]
[1736983607400,3.11068174,713.04,711.26,1.40519112]
[1736983607600,3.1090949,713.03,711.26,1.40519112]
[1736983607900,3.1090949,713.02,711.26,1.40519112]
[1736983608095,3.1090949,713.01,711.26,1.40519112]
[1736983608302,3.1090949,713.0,711.26,2.34119112]
[1736983608495,3.1090949,712.99,711.26,2.34119112]
[1736983608701,3.1090949,712.98,711.26,2.34119112]
[1736983608900,3.1090949,712.97,711.26,2.34119112]
[1736983609097,3.1090949,712.96,711.26,2.34119112]
[1736983609303,3.1090949,712.95,711.27,2.77030828]
[1736983609502,3.1090949,712.94,711.27,2.77030828]
[1736983609704,3.1090949,712.93,711.29,0.28117926]
[1736983609903,3.1090949,712.92,711.29,0.28117926]
[1736983610105,3.1090949,712.91,711.29,0.28117926]
[1736983610303,3.1090949,712.9,711.29,0.28117926]
[1736983610605,1.05286974,713.0,711.29,0.28117926]
[1736983610606,3.1090949,712.89,711.3,2.77030828]
[1736983610805,3.1090949,712.88,711.32,0.2811674]
[1736983611007,3.1090949,712.87,711.32,0.2811674]
[1736983611204,3.1090949,712.86,711.32,0.2811674]
[1736983611401,1.05286974,713.0,711.32,0.2811674]
[1736983611402,3.1090949,712.85,711.32,0.2811674]
[1736983611604,3.1090949,712.84,711.32,0.2811674]
[1736983611800,3.1090949,712.83,711.32,0.2811674]
[1736983612007,1.05286974,712.99,711.32,0.2811674]
[1736983612008,3.1090949,712.82,711.32,0.2811674]
[1736983612208,3.1090949,712.81,711.32,0.2811674]
[1736983612506,3.1090949,712.8,711.32,0.2811674]
[1736983612708,3.1090949,712.79,711.32,0.2811674]
[1736983612902,3.1090949,712.78,711.32,0.2811674]
[1736983613106,3.1090949,712.77,711.32,0.2811674]
[1736983613302,3.1090949,712.76,711.33,2.76999311]
[1736983613500,3.10817939,712.75,711.35,0.28115554]
[1736983613703,3.10817939,712.74,711.35,0.28115554]
[1736983614007,1.89381555,712.73,711.35,0.28115554]
[1736983614210,1.89381555,712.72,711.35,0.28115554]
[1736983614503,1.89381555,712.71,711.35,0.28115554]
[1736983614703,1.89381555,712.7,711.35,0.28115554]
[1736983614910,1.89381555,712.69,711.35,0.28115554]
[1736983615106,1.89381555,712.68,711.35,0.28115554]
[1736983615409,1.89381555,712.67,711.35,0.28115554]
[1736983615610,1.89381555,712.66,711.35,0.28115554]
[1736983615910,1.13483815,712.65,711.35,0.28115554]
[1736983616110,1.05286974,712.96,711.35,0.28115554]
[1736983616410,3.10739514,712.95,711.36,2.76988474]
[1736983616603,4.16026488,712.94,711.38,0.28114369]
[1736983616912,3.10736933,712.93,711.38,0.28114369]
[1736983617104,3.10736933,712.92,711.38,0.28114369]
[1736983617307,1.05286974,712.9,711.38,1.51114369]
[1736983617507,3.10736933,712.89,711.38,1.51114369]
[1736983617807,3.10736933,712.88,711.39,2.76988474]
[1736983618003,3.10736933,712.87,711.39,2.76988474]
[1736983618203,3.10736933,712.86,711.39,2.76988474]
[1736983618401,1.26033111,713.39,711.39,2.76988474]
[1736983618402,3.10736933,712.85,711.39,2.76988474]
[1736983618607,3.10736933,712.84,711.41,0.28113183]
[1736983618807,3.10736933,712.83,711.41,0.28113183]
[1736983619004,3.10731892,712.82,711.41,0.28113183]
[1736983619210,3.10731892,712.81,711.42,2.76988474]
[1736983619514,3.10731892,712.8,711.44,0.28111998]
[1736983619708,3.10731892,712.79,711.44,0.28111998]
[1736983619911,3.10731892,712.78,711.44,0.28111998]
[1736983620108,1.26033111,713.3,711.44,0.28111998]
[1736983620109,3.10731892,712.77,711.44,0.28111998]
[1736983620408,3.10731892,712.76,711.44,0.28111998]
[1736983620608,3.10731892,712.75,711.44,0.28111998]
[1736983620814,3.10731892,712.74,711.45,2.76988474]
[1736983621016,3.10734304,712.73,711.47,0.28110812]
[1736983621314,1.89344565,712.72,711.47,0.28110812]
[1736983621532,1.89344565,712.71,711.47,0.28110812]
[1736983621710,1.05286974,712.86,711.47,0.28110812]
[1736983621711,1.89344565,712.7,711.47,0.28110812]
[1736983621914,1.89344565,712.69,711.47,0.28110812]
[1736983622215,1.89344565,712.68,711.47,0.28110812]
[1736983622514,1.89344565,712.67,711.47,0.28110812]
[1736983622715,1.89344565,712.66,711.47,0.28110812]
[1736983622913,1.89344565,712.65,711.48,2.76997958]
[1736983623109,1.05286974,712.83,711.5,0.28109627]
[1736983623312,4.16037081,712.82,711.5,0.28109627]
[1736983623513,3.10750107,712.81,711.5,0.28109627]
[1736983623707,3.10750107,712.8,711.5,0.28109627]
[1736983623910,4.16037081,712.79,711.5,0.28109627]
[1736983624113,3.10750107,712.78,711.5,0.28109627]
[1736983624313,3.10750107,712.77,711.5,0.28109627]
[1736983624515,3.10750107,712.76,711.5,0.28109627]
[1736983624816,1.26033111,713.25,711.5,0.28109627]
[1736983624817,3.10750107,712.75,711.5,0.28109627]
[1736983625015,3.10750107,712.74,711.5,0.28109627]
[1736983625216,1.89353878,712.73,711.5,0.28109627]
[1736983625419,1.89353878,712.72,711.5,0.28109627]
[1736983625613,1.26033111,713.44,711.5,0.28109627]
[1736983625614,1.89353878,712.71,711.5,0.28109627]
[1736983625816,1.89353878,712.7,711.5,0.28109627]
[1736983626015,1.89353878,712.69,711.5,0.28109627]
[1736983626218,1.89353878,712.68,711.5,0.28109627]
[1736983626418,1.89353878,712.67,711.5,0.28109627]
[1736983626618,1.89353878,712.66,711.5,0.28109627]
[1736983626818,1.89364982,712.65,711.5,0.28109627]
[1736983627021,1.13492339,712.64,711.5,0.28109627]
[1736983627220,1.05286974,712.86,711.5,0.28109627]
[1736983627413,4.16076605,712.85,711.5,0.28109627]
[1736983627618,3.10789631,712.84,711.5,0.28109627]
[1736983627818,3.10789631,712.83,711.5,0.28109627]
[1736983628018,3.10789631,712.82,711.5,0.28109627]
[1736983628219,3.10789631,712.81,711.5,0.28109627]
[1736983628419,3.10789631,712.8,711.5,0.28109627]
[1736983628616,3.10789631,712.79,711.5,0.28109627]
[1736983628820,3.10789631,712.78,711.5,0.28109627]
[1736983629021,3.10789631,712.77,711.5,0.28109627]
[1736983629217,3.10789631,712.76,711.5,0.28109627]
[1736983629416,3.10789631,712.75,711.5,0.28109627]
[1736983629617,3.10789631,712.74,711.5,0.28109627]
[1736983629818,3.10789631,712.73,711.5,0.28109627]
[1736983630017,3.10789631,712.72,711.5,0.28109627]
[1736983630221,3.10789631,712.71,711.5,0.28109627]
[1736983630418,1.89377974,712.7,711.5,0.28109627]
[1736983630720,1.89377974,712.69,711.5,0.28109627]
[1736983630921,1.89377974,712.68,711.5,0.28109627]
[1736983631121,1.89377974,712.67,711.5,0.28109627]
[1736983631322,1.89377974,712.66,711.5,0.28109627]
[1736983631524,1.89377974,712.65,711.5,0.28109627]
[1736983631727,1.89377974,712.64,711.5,0.28109627]
[1736983632025,1.89377974,712.63,711.5,0.28109627]
[1736983632219,1.89377974,712.62,711.5,0.28109627]
[1736983632525,1.13495689,712.61,711.5,0.28109627]
[1736983632720,1.05286974,712.82,711.5,0.28109627]
[1736983632920,3.10903258,712.81,711.5,0.28109627]
[1736983633122,3.10903258,712.8,711.5,0.28109627]
[1736983633319,3.10903258,712.79,711.5,0.28109627]
[1736983633619,3.10903258,712.78,711.5,1.28709627]
[1736983633823,3.10903258,712.77,711.5,1.28709627]
[1736983634017,1.05286974,712.85,711.5,1.28709627]
[1736983634018,3.10925661,712.76,711.5,1.28709627]
[1736983634223,3.10925661,712.75,711.5,1.28709627]
[1736983634424,3.10925661,712.74,711.5,1.28709627]
[1736983634624,3.10925661,712.73,711.5,1.28709627]
[1736983634821,3.10925661,712.72,711.5,1.28709627]
[1736983635020,3.10925661,712.71,711.5,1.28709627]
[1736983635223,1.89460759,712.7,711.5,1.28709627]
[1736983635420,1.89460759,712.69,711.5,1.28709627]
[1736983635722,1.89460759,712.68,711.5,1.28709627]
[1736983635920,1.89460759,712.67,711.5,1.28709627]
[1736983636227,1.89460759,712.66,711.5,1.28709627]
[1736983636426,1.89460759,712.65,711.5,1.28709627]
[1736983636620,1.89460759,712.64,711.5,1.28709627]
[1736983636825,1.89460759,712.63,711.5,1.28709627]
[1736983637026,1.89460759,712.62,711.5,1.28709627]
[1736983637226,1.05286974,712.88,711.5,1.28709627]
[1736983637227,1.89460759,712.61,711.5,1.28709627]
[1736983637527,1.89460759,712.6,711.5,1.28709627]
[1736983637828,1.89460759,712.59,711.5,1.28709627]
[1736983638029,1.13545195,712.58,711.5,1.28709627]
[1736983638228,1.05286974,712.87,711.5,1.28709627]
[1736983638426,3.11074462,712.86,711.5,1.28709627]
[1736983638628,3.11074462,712.85,711.5,1.28709627]
[1736983638827,3.11074462,712.84,711.5,1.28709627]
[1736983639022,3.11074462,712.83,711.5,1.28709627]
[1736983639221,3.11074462,712.82,711.5,1.28709627]
[1736983639423,3.11074462,712.81,711.5,1.28709627]
[1736983639622,3.11074462,712.8,711.5,1.28709627]
[1736983639825,3.11074462,712.79,711.5,1.28709627]
[1736983640025,3.11074462,712.78,711.5,1.28709627]
[1736983640227,3.11074462,712.77,711.5,1.28709627]
[1736983640428,3.11074462,712.76,711.5,1.28709627]
[1736983640629,3.11074462,712.75,711.5,2.52109627]
[1736983640928,3.11074462,712.74,711.5,2.52109627]
[1736983641120,3.11074462,712.73,711.5,2.52109627]
[1736983641323,3.11074462,712.72,711.5,2.52109627]
[1736983641525,3.11074462,712.71,711.5,2.52109627]
[1736983641726,3.11074462,712.7,711.5,2.52109627]
[1736983641924,3.11074462,712.69,711.5,2.52109627]
[1736983642126,3.11074462,712.68,711.5,2.52109627]
[1736983642329,3.11074462,712.67,711.5,2.52109627]
[1736983642523,1.89551385,712.66,711.5,2.52109627]
[1736983642725,1.89551385,712.65,711.5,2.52109627]
[1736983642925,1.89551385,712.64,711.5,2.52109627]
[1736983643127,1.89551385,712.63,711.5,2.52109627]
[1736983643323,1.89551385,712.62,711.5,2.52109627]
[1736983643626,1.89551385,712.61,711.5,2.52109627]
[1736983643829,1.26033111,713.47,711.5,2.52109627]
[1736983643830,1.89551385,712.6,711.5,2.52109627]
[1736983644023,1.89551385,712.59,711.5,2.52109627]
[1736983644227,1.89551385,712.58,711.5,2.52109627]
[1736983644428,1.89551385,712.57,711.5,2.52109627]
[1736983644624,1.13599462,712.56,711.5,2.52109627]
[1736983644825,1.05286974,712.79,711.5,2.52109627]
[1736983645026,3.11296251,712.78,711.5,2.52109627]
[1736983645226,3.11296251,712.77,711.5,2.52109627]
[1736983645428,3.11296251,712.76,711.5,2.52109627]
[1736983645632,4.16583225,712.75,711.5,2.52109627]
[1736983645828,3.11296251,712.74,711.5,2.52109627]
[1736983646024,3.11346609,712.73,711.5,2.52109627]
[1736983646224,3.11346609,712.72,711.5,2.52109627]
[1736983646430,3.11346609,712.71,711.5,2.52109627]
[1736983646629,3.11346609,712.7,711.5,2.52109627]
[1736983646826,1.05286974,712.74,711.5,2.52109627]
[1736983646827,3.11346609,712.69,711.5,2.52109627]
[1736983647028,3.11346609,712.68,711.5,2.52109627]
[1736983647228,3.11346609,712.67,711.5,2.52109627]
[1736983647424,3.11346609,712.66,711.5,2.52109627]
[1736983647624,3.11346609,712.65,711.5,2.52109627]
[1736983647825,3.11346609,712.64,711.5,2.52109627]
[1736983648025,3.11450794,712.63,711.5,2.52109627]
[1736983648223,3.11450794,712.62,711.5,2.52109627]
[1736983648428,1.89780737,712.61,711.5,2.52109627]
[1736983648623,1.89780737,712.6,711.5,2.52109627]
[1736983648828,1.89780737,712.59,711.5,2.52109627]
[1736983649028,1.89780737,712.58,711.5,2.52109627]
[1736983649327,1.89780737,712.57,711.5,2.52109627]
[1736983649531,1.89780737,712.56,711.5,2.52109627]
[1736983649830,1.89780737,712.55,711.5,2.52109627]
[1736983650033,1.89780737,712.54,711.5,2.52109627]
[1736983650332,1.05286974,712.73,711.5,2.52109627]
[1736983650531,3.11605519,712.72,711.5,2.52109627]
[1736983650730,3.11605519,712.71,711.5,2.52109627]
[1736983651031,3.11605519,712.7,711.5,2.52109627]
[1736983651231,3.11605519,712.69,711.5,2.52109627]
[1736983651432,3.11605519,712.68,711.5,2.52109627]
[1736983651737,3.11605519,712.67,711.5,2.52109627]
[1736983651929,3.1165431,712.66,711.5,2.52109627]
[1736983652128,3.1165431,712.65,711.5,2.52109627]
[1736983652328,3.1165431,712.64,711.5,2.52109627]
[1736983652527,3.1165431,712.63,711.5,2.52109627]
[1736983652728,3.1165431,712.62,711.51,2.77871084]
[1736983652936,1.05286974,712.74,711.51,2.77871084]
[1736983652937,3.1165431,712.61,711.53,0.28108442]
[1736983653137,1.26033111,713.27,711.53,0.28108442]
[1736983653138,3.1165431,712.6,711.53,0.28108442]
[1736983653439,3.1165431,712.59,711.53,0.28108442]
[1736983653638,1.89904737,712.58,711.53,0.28108442]
[1736983653834,1.89924365,712.57,711.53,0.28108442]
[1736983654032,1.89924365,712.56,711.53,1.49408442]
[1736983654237,1.89924365,712.55,711.53,1.49408442]
[1736983654439,1.89924365,712.54,711.53,1.49408442]
[1736983654637,1.89924365,712.53,711.53,1.49408442]
[1736983654834,1.89924365,712.52,711.53,1.49408442]
[1736983655037,1.13845902,712.51,711.53,1.49408442]
[1736983655237,1.05286974,712.73,711.53,1.49408442]
[1736983655440,3.11744838,712.72,711.53,1.49408442]
[1736983655740,1.05286974,712.71,711.53,1.49408442]
[1736983655940,0.7000717,713.5,711.53,1.49408442]
[1736983656137,0.25781,713.49,711.53,1.49408442]
[1736983656334,0.25781,713.48,711.53,1.49408442]
[1736983656537,2.51711601,713.47,711.53,1.49408442]
[1736983656737,1.05183562,712.72,711.53,1.49408442]
[1736983656937,3.11739191,712.71,711.53,1.49408442]
[1736983657137,3.11739191,712.7,711.53,1.49408442]
[1736983657340,3.11739191,712.69,711.53,1.49408442]
[1736983657540,3.11739191,712.68,711.53,1.49408442]
[1736983657743,3.11739191,712.67,711.54,2.77856203]
[1736983657941,3.11739191,712.66,711.56,0.28107257]
[1736983658142,3.11739191,712.65,711.56,0.28107257]
[1736983658442,3.11739191,712.64,711.56,0.28107257]
[1736983658643,1.89955444,712.63,711.56,0.28107257]
[1736983658944,1.89955444,712.62,711.56,0.28107257]
[1736983659241,1.89955444,712.61,711.56,0.28107257]
[1736983659438,1.89955444,712.6,711.56,0.28107257]
[1736983659635,1.89955444,712.59,711.56,0.28107257]
[1736983659835,1.89955444,712.58,711.56,0.28107257]
[1736983660038,1.89955444,712.57,711.56,0.28107257]
[1736983660238,1.89955444,712.56,711.56,0.28107257]
[1736983660536,1.89957662,712.55,711.56,0.28107257]
[1736983660742,1.89957662,712.54,711.56,0.28107257]
[1736983660941,1.1384282,712.53,711.56,0.28107257]
[1736983661135,1.05183562,712.76,711.56,0.28107257]
[1736983661444,3.1173929,712.75,711.56,0.28107257]
[1736983661639,3.1173929,712.74,711.56,0.28107257]
[1736983661837,3.1173929,712.73,711.56,0.28107257]
[1736983662140,3.1173929,712.72,711.56,0.28107257]
[1736983662341,3.11740926,712.71,711.56,0.28107257]
[1736983662537,3.11740926,712.7,711.56,0.28107257]
[1736983662843,3.11740926,712.69,711.56,0.28107257]
[1736983663043,3.11740926,712.68,711.56,0.28107257]
[1736983663346,3.11740926,712.67,711.56,0.28107257]
[1736983663645,3.11740926,712.66,711.56,0.28107257]
[1736983663943,3.11740926,712.65,711.56,0.28107257]
[1736983664141,3.11740926,712.64,711.56,0.28107257]
[1736983664346,3.11744839,712.63,711.56,0.28107257]
[1736983664545,1.8996011,712.62,711.56,0.28107257]
[1736983664738,1.8996011,712.61,711.56,0.28107257]
[1736983664941,1.8996011,712.6,711.56,0.28107257]
[1736983665140,1.8996011,712.59,711.56,0.28107257]
[1736983665339,1.8996011,712.58,711.56,0.28107257]
[1736983665539,1.8996011,712.57,711.56,0.28107257]
[1736983665743,1.8996011,712.56,711.56,0.28107257]
[1736983665944,1.8996011,712.55,711.56,0.28107257]
[1736983666146,1.13844654,712.54,711.56,0.28107257]
[1736983666345,1.05183562,712.81,711.56,0.28107257]
[1736983666539,1.05183562,712.76,711.56,0.28107257]
[1736983666740,3.11751541,712.75,711.56,0.28107257]
[1736983666938,3.11751541,712.74,711.56,0.28107257]
[1736983667142,3.11751541,712.73,711.56,0.28107257]
[1736983667346,3.11751541,712.72,711.56,1.23507257]
[1736983667547,3.11751541,712.71,711.56,1.23507257]
[1736983667747,3.11751541,712.7,711.56,1.23507257]
[1736983668042,3.11751541,712.69,711.56,1.23507257]
[1736983668242,1.05183562,712.77,711.56,1.23507257]
[1736983668243,3.11751541,712.68,711.56,1.23507257]
[1736983668440,1.05183562,712.77,711.56,1.23507257]
[1736983668441,3.11751541,712.67,711.56,1.23507257]
[1736983668642,1.89964188,712.66,711.56,1.23507257]
[1736983668842,1.89964188,712.65,711.56,1.23507257]
[1736983669044,1.05183562,712.77,711.56,1.23507257]
[1736983669245,1.89943925,712.76,711.56,1.23507257]
[1736983669447,1.89943925,712.75,711.56,1.23507257]
[1736983669647,1.05183562,713.11,711.56,1.23507257]
[1736983669648,1.89943925,712.74,711.56,1.23507257]
[1736983669848,1.89943925,712.73,711.56,1.23507257]
[1736983670044,1.05183562,713.21,711.56,1.23507257]
[1736983670045,1.89943925,712.72,711.56,2.58807257]
[1736983670350,1.89883091,712.71,711.56,2.58807257]
[1736983670550,1.89883091,712.7,711.56,2.58807257]
[1736983670751,1.89848741,712.69,711.56,2.58807257]
[1736983670946,1.89848741,712.68,711.56,2.58807257]
[1736983671152,1.89848741,712.67,711.56,2.58807257]
[1736983671352,1.1377856,712.66,711.56,2.58807257]
[1736983671553,1.05183562,713.17,711.56,2.58807257]
[1736983671753,3.11517317,713.16,711.56,2.58807257]
[1736983671957,3.11517317,713.15,711.56,2.58807257]
[1736983672153,3.11517317,713.14,711.56,2.58807257]
[1736983672354,3.11514293,713.13,711.56,2.58807257]
[1736983672556,3.11514293,713.12,711.56,2.58807257]
[1736983672754,3.11514293,713.11,711.56,2.58807257]
[1736983672951,3.11514293,713.1,711.56,2.58807257]
[1736983673151,3.11514293,713.09,711.56,2.58807257]
[1736983673352,3.11514293,713.08,711.56,2.58807257]
[1736983673654,3.11514293,713.07,711.56,2.58807257]
[1736983673855,3.11514293,713.06,711.56,2.58807257]
[1736983674154,3.11514293,713.05,711.56,2.58807257]
[1736983674353,3.11514293,713.04,711.56,2.58807257]
[1736983674550,3.11514293,713.03,711.56,2.58807257]
[1736983674749,3.11514293,713.02,711.56,2.58807257]
[1736983674950,3.11514293,713.01,711.56,2.58807257]
[1736983675155,3.11514293,713.0,711.56,2.58807257]
[1736983675456,3.11514293,712.99,711.56,2.58807257]
[1736983675654,3.11514293,712.98,711.56,2.58807257]
[1736983675853,3.11514293,712.97,711.56,2.58807257]
[1736983676055,3.11514293,712.96,711.56,2.58807257]
[1736983676250,3.11514293,712.95,711.56,2.58807257]
[1736983676555,3.11514293,712.94,711.56,2.58807257]
[1736983676755,3.11514293,712.93,711.56,2.58807257]
[1736983676954,3.11289209,712.92,711.56,2.58807257]
[1736983677156,3.11289209,712.91,711.56,2.58807257]
[1736983677355,3.11289209,712.9,711.56,2.58807257]
[1736983677555,3.11289209,712.89,711.56,2.58807257]
[1736983677853,3.11289209,712.88,711.56,2.58807257]
[1736983678157,1.05183562,713.08,711.56,2.58807257]
[1736983678352,3.11244874,713.07,711.56,2.58807257]
[1736983678550,3.11244874,713.06,711.57,2.77284054]
[1736983678749,3.11244874,713.05,711.59,0.28106072]
[1736983678955,3.11244874,713.04,711.59,0.28106072]
[1736983679154,1.05183562,713.0,711.59,0.28106072]
[1736983679357,3.11244874,712.99,711.59,0.28106072]
[1736983679556,3.11244874,712.98,711.59,0.28106072]
[1736983679758,3.11244874,712.97,711.6,2.77284054]
[1736983679959,3.11244874,712.96,711.6,2.77284054]
[1736983680157,3.11244874,712.95,711.6,2.77284054]
[1736983680457,3.11244874,712.94,711.6,2.77284054]
[1736983680650,3.11244874,712.93,711.6,2.77284054]
[1736983680856,0.28032405,713.46,711.59,0.28106072]
[1736983680857,3.11244874,712.92,711.59,0.28106072]
[1736983681058,3.11244874,712.91,711.59,0.28106072]
[1736983681255,3.11244874,712.9,711.59,0.28106072]
[1736983681461,1.05183562,713.12,711.59,0.28106072]
[1736983681657,3.11155361,713.11,711.59,0.28106072]
[1736983681855,3.11155361,713.1,711.59,0.28106072]
[1736983682056,3.11155361,713.09,711.59,0.28106072]
[1736983682255,3.11155361,713.08,711.59,0.28106072]
[1736983682556,3.11155361,713.07,711.59,0.28106072]
[1736983682760,3.11155361,713.06,711.59,0.28106072]
[1736983682960,3.11155361,713.05,711.59,0.28106072]
[1736983683157,3.11155361,713.04,711.59,0.28106072]
[1736983683357,1.05183562,713.14,711.59,0.28106072]
[1736983683358,3.11155361,713.03,711.59,0.28106072]
[1736983683559,3.11155361,713.02,711.59,0.28106072]
[1736983683762,3.11155361,713.01,711.59,0.28106072]
[1736983683963,3.11155361,713.0,711.59,0.28106072]
[1736983684159,3.11155361,712.99,711.59,0.28106072]
[1736983684358,3.11155361,712.98,711.59,0.28106072]
[1736983684562,3.11155361,712.97,711.59,0.28106072]
[1736983684763,3.11155361,712.96,711.59,0.28106072]
[1736983684961,3.11155361,712.95,711.59,0.28106072]
[1736983685266,3.11155361,712.94,711.59,1.67706072]
[1736983685466,3.11155361,712.93,711.59,1.67706072]
[1736983685665,3.11155361,712.92,711.59,1.67706072]
[1736983685968,1.89601933,712.91,711.59,1.67706072]
[1736983686162,1.89601933,712.9,711.59,1.67706072]
[1736983686359,1.89601933,712.89,711.59,1.67706072]
[1736983686561,1.89601933,712.88,711.59,1.67706072]
[1736983686765,1.89601933,712.87,711.59,1.67706072]
[1736983686959,1.05183562,713.21,711.59,1.67706072]